bitfinex/quotes_ETHUSD_20250904
["timestamp","ask_amount","ask_price","bid_price","bid_amount"]
[1757026732207,4.2668,4354.7,4353.2,1.8072]
[1757026732208,2.29710794,4353.3,4353.2,1.8072]
[1757026732537,2.29710794,4353.3,4352.8,4.598]
[1757026732538,2.29717013,4353.2,4353.0,0.1152]
[1757026732842,2.73957013,4353.2,4353.0,0.1152]
[1757026733240,2.59331348,4353.1,4352.8,0.029]
[1757026733438,3.15091348,4353.1,4352.8,0.029]
[1757026733638,2.29731902,4352.9,4352.8,0.029]
[1757026734007,3.03581902,4352.9,4352.8,0.029]
[1757026734243,3.51061902,4352.9,4352.8,0.029]
[1757026734738,3.03581902,4352.9,4352.8,0.029]
[1757026735938,2.41251902,4352.9,4352.8,0.029]
[1757026736507,2.70861902,4352.9,4352.8,0.029]
[1757026737148,3.15101902,4352.9,4352.8,0.029]
[1757026737314,3.62581902,4352.9,4352.8,0.029]
[1757026737512,4.41781902,4352.9,4352.8,0.029]
[1757026737945,4.41781902,4352.9,4352.8,1e-08]
[1757026738719,3.0893718,4352.8,4352.3,1e-08]
[1757026738942,0.9072,4352.4,4352.3,1e-08]
[1757026739144,8.03888294,4352.4,4352.3,1e-08]
[1757026739319,8.48128294,4352.4,4352.3,1e-08]
[1757026739720,8.95608294,4352.4,4352.3,1e-08]
[1757026740924,11.95608294,4352.4,4352.3,1e-08]
[1757026741129,0.4424,4353.6,4352.3,0.29160001]
[1757026741346,2.29700241,4353.5,4352.3,0.29160001]
[1757026741548,2.29750149,4352.6,4352.3,1e-08]
[1757026741748,5.0084,4353.4,4352.3,1e-08]
[1757026741952,2.29684413,4353.8,4352.5,0.2916]
[1757026742151,2.29674085,4354.0,4352.5,0.2916]
[1757026742353,4.562,4353.9,4352.6,0.4439]
[1757026742555,2.29728993,4353.0,4352.6,0.4439]
[1757026742927,2.29732714,4352.9,4352.6,0.4439]
[1757026743327,2.29716945,4353.2,4352.8,0.2916]
[1757026743553,3.0,4353.7,4352.8,0.2916]
[1757026743554,0.22971695,4353.1,4352.8,0.2916]
[1757026743719,4.554,4353.7,4352.8,0.2916]
[1757026744222,0.05,4353.8,4352.8,0.2916]
[1757026744438,0.05,4353.8,4352.5,0.4439]
[1757026744439,2.29733623,4352.9,4352.5,0.4439]
[1757026744644,2.29710794,4353.3,4352.3,1e-08]
[1757026744846,2.29757132,4352.5,4352.3,1e-08]
[1757026745052,0.4424,4353.2,4352.3,1e-08]
[1757026745221,2.29758294,4352.4,4352.3,1e-08]
[1757026745418,2.59368294,4352.4,4352.3,1e-08]
[1757026746351,2.29758294,4352.4,4352.3,1e-08]
[1757026747856,3.03608294,4352.4,4352.3,1e-08]
[1757026748625,3.82808294,4352.4,4352.3,1e-08]
[1757026749851,2.29758294,4352.4,4352.3,1e-08]
[1757026750043,3.04108294,4352.4,4352.3,1e-08]
[1757026751051,3.15628294,4352.4,4352.3,1e-08]
[1757026752832,2.41278294,4352.4,4352.3,1e-08]
[1757026753037,6.92778294,4352.4,4352.3,1e-08]
[1757026753565,2.41278294,4352.4,4352.3,1e-08]
[1757026754545,2.71488294,4352.4,4352.3,1e-08]
[1757026755057,2.71488294,4352.4,4352.3,0.30990001]
[1757026755058,0.1152,4352.4,4352.3,0.30990001]
[1757026755244,0.1152,4352.4,4352.3,0.76090001]
[1757026755245,2.29758294,4352.4,4352.3,0.76090001]
[1757026755433,2.59968294,4352.4,4352.3,1e-08]
[1757026756226,2.29758294,4352.4,4352.3,1e-08]
[1757026759129,2.29758294,4352.4,4352.3,0.30990001]
[1757026759370,2.29758294,4352.4,4352.3,1e-08]
[1757026760934,2.59968294,4352.4,4352.3,1e-08]
[1757026761334,2.29758294,4352.4,4352.3,1e-08]
[1757026761729,2.29758294,4352.4,4352.3,0.30990001]
[1757026761965,2.29758294,4352.4,4352.3,0.76090001]
[1757026762166,2.29758294,4352.4,4352.3,0.30990001]
[1757026762874,2.29758294,4352.4,4352.3,1e-08]
[1757026763369,2.59968294,4352.4,4352.3,1e-08]
[1757026763664,2.29758294,4352.4,4352.3,1e-08]
[1757026764684,1.744,4353.8,4352.3,0.30990001]
[1757026764871,2.34784825,4353.8,4352.4,1.35697582]
[1757026765176,2.29699537,4353.6,4353.4,0.1152]
[1757026765348,2.34784413,4353.8,4353.4,0.1152]
[1757026765871,2.29699598,4353.6,4353.4,0.1152]
[1757026766077,2.29698714,4353.6,4353.4,0.1152]
[1757026766442,2.29700241,4353.5,4353.4,0.1152]
[1757026766850,2.29694965,4353.6,4352.9,0.4807]
[1757026767052,2.41214965,4353.6,4353.0,0.5662]
[1757026767376,2.29705879,4353.4,4353.0,0.5662]
[1757026768077,0.1152,4353.6,4353.3,0.3099]
[1757026768253,2.2971607,4353.2,4353.0,0.5959]
[1757026768453,2.2971607,4353.2,4353.1,0.3099]
[1757026768858,2.5992607,4353.2,4352.5,0.4807]
[1757026769059,0.3021,4353.2,4352.6,0.1152]
[1757026769457,0.3021,4353.2,4352.3,1e-08]
[1757026769458,2.29758294,4352.4,4352.3,1e-08]
[1757026769679,0.1152,4352.8,4352.3,1e-08]
[1757026769880,2.29758294,4352.4,4352.3,1e-08]
[1757026770388,2.59968294,4352.4,4352.3,1e-08]
[1757026770560,3.04108294,4352.4,4352.3,1e-08]
[1757026770884,3.15628294,4352.4,4352.3,1e-08]
[1757026771183,2.71488294,4352.4,4352.3,1e-08]
[1757026771766,2.41278294,4352.4,4352.3,1e-08]
[1757026772374,2.71488294,4352.4,4352.3,1e-08]
[1757026772574,2.41278294,4352.4,4352.3,1e-08]
[1757026773496,2.71488294,4352.4,4352.3,1e-08]
[1757026773793,2.41278294,4352.4,4352.3,1e-08]
[1757026774294,2.71488294,4352.4,4352.3,1e-08]
[1757026774599,3.15628294,4352.4,4352.3,1e-08]
[1757026774899,2.71488294,4352.4,4352.3,1e-08]
[1757026775392,2.41278294,4352.4,4352.3,1e-08]
[1757026776091,2.71488294,4352.4,4352.3,1e-08]
[1757026776283,3.15628294,4352.4,4352.3,1e-08]
[1757026776788,2.71488294,4352.4,4352.3,1e-08]
[1757026776972,3.15628294,4352.4,4352.3,1e-08]
[1757026777170,4.41708294,4352.4,4352.3,1e-08]
[1757026777369,2.29837504,4350.9,4350.8,1.718]
[1757026777571,2.29832953,4351.0,4350.8,2.0279]
[1757026777790,2.41309739,4351.9,4350.9,0.9317]
[1757026777791,2.29827629,4351.1,4350.9,0.9317]
[1757026778085,2.2982694,4351.1,4351.0,1.2416]
[1757026778290,2.2982694,4351.1,4351.0,0.3099]
[1757026779165,2.29821309,4351.3,4351.0,0.3099]
[1757026779479,2.2982694,4351.1,4351.0,0.3099]
[1757026779676,2.29822479,4351.2,4351.0,0.3099]
[1757026779994,2.2982694,4351.1,4351.0,0.3099]
[1757026780195,2.29789971,4351.8,4351.0,1.2389]
[1757026780402,2.29806296,4351.5,4351.0,1.3541]
[1757026780713,2.29822049,4351.2,4351.0,0.4251]
[1757026780902,2.29822049,4351.2,4351.0,0.8727]
[1757026781063,2.2982694,4351.1,4351.0,0.8727]
[1757026781267,2.2982694,4351.1,4351.0,0.4251]
[1757026781678,2.29822496,4351.2,4351.0,0.1152]
[1757026781967,2.2982694,4351.1,4351.0,0.1152]
[1757026782371,0.1152,4351.7,4351.0,0.1152]
[1757026782696,2.29703116,4353.5,4351.0,0.77992]
[1757026782697,0.1152,4352.0,4351.0,0.77992]
[1757026782888,0.792,4352.3,4351.0,0.5966]
[1757026783085,2.41322348,4351.6,4351.0,0.5966]
[1757026783290,2.29815425,4351.4,4351.0,0.5966]
[1757026783486,2.41322348,4351.6,4351.0,0.5966]
[1757026783487,2.29822536,4351.2,4351.0,0.5966]
[1757026784406,2.2982694,4351.1,4351.0,0.1152]
[1757026785176,2.2982694,4351.1,4350.8,1.718]
[1757026785385,2.2982694,4351.1,4350.8,2.1994]
[1757026785878,2.29832292,4351.0,4350.8,2.1994]
[1757026786288,2.29836222,4351.0,4350.8,1.718]
[1757026786487,2.29837269,4351.0,4350.8,1.718]
[1757026787314,2.29836598,4351.0,4350.8,1.718]
[1757026787509,0.1152,4351.3,4350.8,1.718]
[1757026787699,2.29837504,4350.9,4350.8,1.718]
[1757026788231,2.29822664,4351.2,4350.8,1.718]
[1757026788431,2.29836505,4351.0,4350.8,1.718]
[1757026788628,2.29831903,4351.1,4350.8,1.718]
[1757026788775,2.29833582,4351.0,4350.8,1.718]
[1757026788970,2.2982694,4351.1,4350.8,1.718]
[1757026789203,2.29836333,4351.0,4350.8,1.718]
[1757026789409,0.1152,4351.3,4350.8,1.718]
[1757026789604,2.29821814,4351.2,4350.8,1.718]
[1757026789774,0.1152,4351.3,4350.8,1.718]
[1757026789977,2.61297504,4350.9,4350.8,0.025]
[1757026790208,3.10677504,4350.9,4350.8,0.025]
[1757026791204,3.10677504,4350.9,4350.8,1e-08]
[1757026791711,6.96097504,4350.9,4350.8,1e-08]
[1757026792407,6.96097504,4350.9,4350.8,0.00400001]
[1757026792707,7.45477504,4350.9,4350.8,0.00400001]
[1757026793022,8.24677504,4350.9,4350.8,0.00400001]
[1757026793305,8.24677504,4350.9,4350.8,1e-08]
[1757026794404,11.24677504,4350.9,4350.8,1e-08]
[1757026794811,3.0906392,4350.4,4350.3,1e-08]
[1757026795128,3.0906392,4350.4,4348.8,2.2004]
[1757026795129,2.29943204,4348.9,4348.8,0.025]
[1757026795610,2.29943204,4348.9,4348.8,0.5064]
[1757026797681,4.331,4349.4,4348.8,0.025]
[1757026797885,2.29943204,4348.9,4348.8,0.025]
[1757026798601,2.29935511,4349.1,4348.8,0.5064]
[1757026798780,2.29922056,4349.3,4348.9,0.4814]
[1757026798985,1.694,4349.6,4349.0,0.4814]
[1757026799213,6.63012624,4349.5,4349.0,0.4814]
[1757026799378,6.63012624,4349.5,4348.8,0.025]
[1757026799582,2.29912624,4349.5,4349.1,0.4814]
[1757026799882,2.29917817,4349.4,4348.8,0.25745276]
[1757026800106,2.29917817,4349.4,4349.2,0.1152]
[1757026800308,2.29922056,4349.3,4349.2,0.1152]
[1757026800589,0.1152,4349.8,4349.3,0.4814]
[1757026800782,2.29881777,4350.1,4349.6,0.1152]
[1757026801010,0.1152,4350.2,4349.6,0.1152]
[1757026801322,6.61763865,4350.5,4349.6,2.7804552]
[1757026801512,0.1152,4350.7,4350.1,0.1152]
[1757026801685,1.694,4351.0,4350.1,0.1152]
[1757026802038,2.32343502,4350.8,4350.4,0.1152]
[1757026802231,2.32343502,4350.8,4350.6,0.1152]
[1757026802232,0.025,4350.8,4350.6,0.1152]
[1757026802384,0.3146,4350.7,4350.0,0.4814]
[1757026802704,2.29869204,4350.3,4350.2,0.1152]
[1757026803086,2.29865024,4350.4,4350.2,0.1152]
[1757026803295,4.4552,4350.8,4350.2,0.1152]
[1757026803296,2.29853353,4350.6,4350.2,0.1152]
[1757026803501,0.1402,4350.8,4350.3,0.4814]
[1757026803702,0.1652,4350.8,4350.2,0.1152]
[1757026803936,0.1652,4350.8,4350.3,0.4814]
[1757026804233,0.05,4350.8,4350.4,0.4814]
[1757026804435,0.05,4350.8,4350.7,0.1152]
[1757026804744,0.05,4350.8,4350.3,0.1152]
[1757026804745,2.29854796,4350.6,4350.3,0.1152]
[1757026805433,0.05,4350.8,4350.3,0.1152]
[1757026805805,2.6132392,4350.4,4349.4,1.694]
[1757026806010,0.1152,4350.3,4349.7,0.1152]
[1757026806549,2.29911484,4349.5,4349.4,1.694]
[1757026806709,2.29927277,4349.3,4349.2,0.1152]
[1757026807821,2.41415857,4349.8,4349.2,0.1152]
[1757026808118,0.1152,4349.8,4349.2,0.1152]
[1757026808311,2.29914781,4349.5,4349.2,0.1152]
[1757026808635,2.41415909,4349.8,4349.2,0.5966]
[1757026808818,2.29917793,4349.4,4349.2,0.5966]
[1757026809336,2.29917825,4349.4,4349.2,0.5966]
[1757026809538,2.29922056,4349.3,4349.2,0.5966]
[1757026809712,0.1152,4349.8,4349.2,0.5966]
[1757026809713,2.29921783,4349.4,4349.2,0.1152]
[1757026809913,2.29922056,4349.3,4349.2,0.1152]
[1757026810231,2.29928995,4349.2,4348.8,0.025]
[1757026810432,2.29921273,4349.4,4349.0,0.1152]
[1757026810932,2.29928225,4349.2,4349.0,0.1152]
[1757026811114,0.1152,4349.8,4349.0,0.1152]
[1757026811315,2.29912152,4349.5,4349.0,0.1152]
[1757026811515,2.29912152,4349.5,4349.1,0.472]
[1757026812036,2.29912152,4349.5,4349.2,0.468]
[1757026812414,2.29912152,4349.5,4349.3,0.468]
[1757026812610,2.29900912,4349.7,4349.3,0.468]
[1757026812815,2.29911484,4349.5,4349.1,0.004]
[1757026813132,0.1152,4349.8,4349.1,0.004]
[1757026813344,2.29907187,4349.6,4349.1,0.004]
[1757026813547,2.29922932,4349.3,4349.1,0.004]
[1757026813746,2.29917501,4349.4,4349.1,0.004]
[1757026814343,0.1152,4349.8,4349.1,0.472]
[1757026814541,2.29917554,4349.4,4349.1,0.472]
[1757026815063,2.60317342,4349.2,4349.1,0.004]
[1757026815415,3.08487342,4349.2,4349.1,0.004]
[1757026815615,3.20007342,4349.2,4349.1,0.004]
[1757026815863,7.47707342,4349.2,4349.1,0.004]
[1757026816212,3.09143204,4348.9,4348.8,0.025]
[1757026816550,3.20663204,4348.9,4348.8,0.025]
[1757026816743,3.99223204,4348.9,4348.8,0.025]
[1757026817836,4.44773204,4348.9,4348.8,0.025]
[1757026818821,3.09148491,4348.8,4348.7,1e-08]
[1757026819019,2.78118491,4348.8,4348.7,1e-08]
[1757026819349,7.92178491,4348.8,4348.7,1e-08]
[1757026820153,6.98458491,4348.8,4348.7,1e-08]
[1757026820328,2.71858491,4348.8,4348.7,1e-08]
[1757026820652,0.1152,4348.8,4348.7,0.29370001]
[1757026820824,0.1152,4348.8,4348.7,1.20960001]
[1757026821322,2.1767,4351.0,4348.8,0.12096]
[1757026821522,0.1152,4350.5,4349.8,0.1152]
[1757026821724,0.1152,4350.5,4350.4,0.2937]
[1757026821927,2.41378636,4350.5,4350.4,0.2937]
[1757026822234,2.41378636,4350.5,4349.9,0.9159]
[1757026822235,2.29868327,4350.4,4349.9,0.9159]
[1757026822447,2.29858351,4350.6,4350.4,0.2937]
[1757026822650,0.001,4351.3,4350.5,0.9159]
[1757026822953,2.41352318,4351.0,4350.5,1.04838]
[1757026823251,0.1152,4351.0,4350.7,0.2937]
[1757026823434,2.29862159,4350.5,4350.3,0.1152]
[1757026823756,2.29853353,4350.6,4350.3,0.1152]
[1757026823942,2.29895627,4349.8,4349.4,0.468]
[1757026824143,0.1152,4350.1,4349.5,0.1152]
[1757026824452,2.29906198,4349.6,4349.3,0.1152]
[1757026824623,2.29906198,4349.6,4349.3,0.34101]
[1757026825052,2.2991677,4349.4,4349.3,0.34101]
[1757026825255,0.1152,4350.1,4349.3,0.4089]
[1757026825458,2.29890863,4349.9,4349.3,0.4089]
[1757026825751,2.2987493,4350.2,4349.8,0.1152]
[1757026825934,2.32447586,4350.8,4349.9,0.4479]
[1757026826135,0.026,4350.8,4350.4,0.4089]
[1757026826324,0.026,4350.8,4350.5,0.9159]
[1757026826525,0.026,4350.8,4350.7,0.1152]
[1757026826726,0.026,4350.8,4350.7,0.4089]
[1757026826925,0.026,4350.8,4350.7,1.3248]
[1757026827546,2.62832787,4350.8,4350.7,0.1152]
[1757026827738,0.026,4350.8,4350.7,0.1152]
[1757026827935,0.026,4350.8,4350.7,0.4089]
[1757026828137,2.32442787,4350.8,4350.7,0.1152]
[1757026828453,0.026,4350.8,4350.4,0.1152]
[1757026828832,0.026,4350.8,4350.4,0.5832]
[1757026829027,0.026,4350.8,4350.7,0.2937]
[1757026829229,0.026,4350.8,4350.7,0.4089]
[1757026829423,0.026,4350.8,4350.7,3.7557607]
[1757026829628,0.026,4350.8,4350.7,1.45728]
[1757026830523,0.026,4350.8,4350.7,3.7557607]
[1757026830929,0.026,4350.8,4350.7,1.45728]
[1757026834154,0.026,4350.8,4350.7,3.7557607]
[1757026835040,0.026,4350.8,4350.7,3.7787455]
[1757026835746,0.026,4350.8,4350.7,3.7557607]
[1757026836664,0.026,4350.8,4350.7,7.9787607]
[1757026838060,0.026,4350.8,4350.7,8.0708745]
[1757026840170,1e-08,4350.8,4350.7,8.8628745]
[1757026840345,1e-08,4350.8,4350.7,11.8628745]
[1757026841368,0.001,4351.3,4351.2,6.09021658]
[1757026841568,0.001,4351.3,4351.2,11.24926784]
[1757026841875,0.05,4353.8,4352.7,2.29742458]
[1757026842075,0.05,4353.8,4352.7,9.28542458]
[1757026842241,0.4296,4353.6,4352.7,11.5017]
[1757026842440,0.4296,4353.6,4352.7,14.37272458]
[1757026842666,0.4296,4353.6,4352.7,9.58734486]
[1757026842865,2.72671314,4353.3,4352.7,13.48464486]
[1757026843065,1.1989,4352.8,4352.7,3.52524486]
[1757026843264,0.3109,4352.8,4352.7,6.0142]
[1757026843540,0.025,4352.8,4352.7,6.0142]
[1757026843956,0.025,4352.8,4352.7,6.3239]
[1757026844359,0.025,4352.8,4352.7,9.57462458]
[1757026845181,0.025,4352.8,4352.7,11.88562457]
[1757026845364,0.025,4352.8,4352.7,13.30393853]
[1757026845882,0.025,4352.8,4352.7,10.99293854]
[1757026846244,0.05,4353.8,4353.7,2.29689689]
[1757026846445,0.05,4353.8,4353.7,8.18789689]
[1757026846679,0.05,4353.8,4353.7,9.56609689]
[1757026846845,0.05,4353.8,4353.7,10.75240444]
[1757026847255,0.05,4353.8,4353.7,14.54440444]
[1757026847566,0.05,4353.8,4353.7,13.75240444]
[1757026847766,0.05,4353.8,4353.7,14.54440444]
[1757026848385,0.05,4353.8,4353.7,13.75240444]
[1757026848962,0.05,4353.8,4353.7,9.09130444]
[1757026849257,0.05,4353.8,4353.7,3.79440755]
[1757026849464,0.3359,4353.8,4353.7,6.0022]
[1757026849660,0.3359,4353.8,4353.7,6.3119]
[1757026849661,0.05,4353.8,4353.7,6.3119]
[1757026850196,0.051,4353.8,4353.7,9.56209689]
[1757026850558,0.051,4353.8,4353.7,9.44689689]
[1757026850763,0.051,4353.8,4353.7,9.56209689]
[1757026850957,0.051,4353.8,4353.7,10.74800539]
[1757026851184,0.051,4353.8,4353.7,13.74800539]
[1757026851862,1e-08,4353.8,4353.7,13.74800539]
[1757026852361,1e-08,4353.8,4353.7,14.88320539]
[1757026852572,1e-08,4353.8,4353.7,14.99840539]
[1757026853693,1e-08,4353.8,4353.7,13.95352948]
[1757026853997,1e-08,4353.8,4353.7,14.41662948]
[1757026854300,0.1144,4356.2,4353.8,3.792]
[1757026854498,0.888,4356.5,4353.9,6.95135526]
[1757026854791,2.29492155,4357.5,4353.9,6.95135526]
[1757026854792,0.4296,4356.1,4354.2,2.29663313]
[1757026854993,0.4584,4356.4,4356.0,2.29568411]
[1757026855193,0.2859,4356.1,4355.9,1.693]
[1757026855366,0.2859,4356.1,4356.0,5.915]
[1757026855567,0.7155,4356.1,4356.0,6.5065]
[1757026855871,1.1739,4356.1,4356.0,5.915]
[1757026856997,2.2958758,4355.7,4355.3,1.693]
[1757026857178,3.18390265,4355.6,4355.4,4.218]
[1757026857378,1.1739,4355.5,4355.4,4.218]
[1757026857995,2.29604851,4355.4,4355.0,1.693]
[1757026858200,2.29519517,4357.0,4355.0,1.693]
[1757026858201,0.2859,4355.1,4355.0,1.693]
[1757026858430,2.29621125,4355.0,4354.7,4.214]
[1757026858701,2.29636943,4354.7,4354.6,4.214]
[1757026859006,1.1739,4354.7,4354.5,4.214]
[1757026859183,0.4296,4354.6,4354.5,4.214]
[1757026859498,1.1739,4354.6,4354.5,4.214]
[1757026859704,2.29652765,4354.4,4354.3,4.211]
[1757026860010,1.1739,4354.4,4354.0,4.21]
[1757026860209,0.4296,4354.3,4354.1,4.21]
[1757026860509,1.1739,4354.2,4353.5,1.692]
[1757026860709,1.00539,4354.1,4353.1,4.209]
[1757026860896,0.2859,4353.2,4352.9,4.211]
[1757026861206,0.888,4353.1,4352.6,1.692]
[1757026861422,0.2859,4352.7,4352.6,5.902]
[1757026861625,0.11739,4354.1,4352.6,5.902]
[1757026861626,0.888,4353.6,4352.6,6.11290768]
[1757026861773,0.4296,4353.5,4352.7,0.61129077]
[1757026861979,0.2859,4352.8,4351.9,1.692]
[1757026862182,0.2859,4352.8,4352.0,4.208]
[1757026862183,0.888,4352.7,4352.0,4.208]
[1757026862382,0.2859,4352.1,4352.0,4.208]
[1757026862636,0.2859,4352.1,4351.9,1.692]
[1757026862637,1.1739,4352.1,4351.9,1.692]
[1757026862799,2.29784691,4351.9,4351.8,0.025]
[1757026863307,3.47174691,4351.9,4351.8,0.025]
[1757026864505,3.58694691,4351.9,4351.8,0.025]
[1757026864983,1.2891,4351.9,4351.8,0.025]
[1757026865190,3.47174691,4351.9,4351.8,0.025]
[1757026866717,0.7155,4351.9,4351.8,0.025]
[1757026867593,3.01334691,4351.9,4351.8,0.025]
[1757026867922,0.7155,4351.9,4351.8,0.025]
[1757026868219,0.4296,4352.5,4351.8,4.3362]
[1757026868419,0.2859,4351.9,4351.8,4.3362]
[1757026868725,0.7155,4351.9,4351.8,4.225]
[1757026869217,3.47894691,4351.9,4351.8,0.029]
[1757026869418,1.1811,4351.9,4351.8,0.029]
[1757026869620,3.47894691,4351.9,4351.8,0.029]
[1757026869827,3.8383616,4351.9,4351.8,0.029]
[1757026870013,3.47894691,4351.9,4351.8,0.029]
[1757026870597,4.27094691,4351.9,4351.8,0.029]
[1757026872523,7.27094691,4351.9,4351.8,0.029]
[1757026872844,6.04934691,4351.9,4351.8,0.029]
[1757026873127,0.1152,4352.0,4351.8,0.029]
[1757026873293,0.4297,4352.4,4351.8,0.029]
[1757026873294,2.29764045,4352.3,4351.8,0.029]
[1757026873493,0.1152,4352.3,4351.8,0.029]
[1757026873721,2.2977318,4352.2,4351.8,0.029]
[1757026873924,0.1152,4352.3,4351.9,0.4221]
[1757026874126,2.29769244,4352.2,4351.9,0.4221]
[1757026874328,2.29725664,4353.1,4352.1,0.3009]
[1757026874634,0.36137744,4353.8,4352.2,6.3177]
[1757026874635,0.001,4353.8,4352.2,6.3177]
[1757026874807,0.001,4353.8,4352.2,1.693]
[1757026874808,0.1152,4353.5,4352.2,1.693]
[1757026875003,2.29722017,4353.1,4352.6,0.1152]
[1757026875326,0.3118,4352.7,4352.4,4.191]
[1757026875515,2.29753015,4352.5,4352.4,4.191]
[1757026875697,2.29763573,4352.3,4352.2,1.8082]
[1757026875895,3.50473573,4352.3,4352.2,0.1152]
[1757026876199,4.29673573,4352.3,4352.2,0.1152]
[1757026876393,2.29784691,4351.9,4351.8,0.029]
[1757026876630,2.41304691,4351.9,4351.8,0.029]
[1757026876808,4.41214691,4351.9,4351.8,0.029]
[1757026879411,3.03934691,4351.9,4351.8,0.029]
[1757026879731,3.62014691,4351.9,4351.8,0.029]
[1757026880509,3.15454691,4351.9,4351.8,0.029]
[1757026880970,2.72484691,4351.9,4351.8,0.029]
[1757026881236,3.15454691,4351.9,4351.8,0.029]
[1757026881447,4.41214691,4351.9,4351.8,0.029]
[1757026881608,7.41214691,4351.9,4351.8,0.029]
[1757026882031,7.41214691,4351.9,4351.8,1e-08]
[1757026882203,0.792,4351.4,4351.3,1e-08]
[1757026882407,10.26611095,4351.4,4351.3,1e-08]
[1757026884024,11.12081095,4351.4,4351.3,1e-08]
[1757026884439,2.41331095,4351.4,4351.3,1e-08]
[1757026885246,3.62041095,4351.4,4351.3,1e-08]
[1757026885559,4.41241095,4351.4,4351.3,1e-08]
[1757026885736,4.92427406,4351.4,4351.3,1e-08]
[1757026885926,7.41241095,4351.4,4351.3,1e-08]
[1757026888560,2.29837504,4350.9,4350.8,1e-08]
[1757026888732,10.25937504,4350.9,4350.8,1e-08]
[1757026888936,11.58167504,4350.9,4350.8,1e-08]
[1757026889262,6.09058636,4350.5,4350.4,1e-08]
[1757026889429,11.95258636,4350.5,4350.4,1e-08]
[1757026889624,11.95258636,4350.5,4349.8,0.025]
[1757026889625,3.09090342,4349.9,4349.8,1e-08]
[1757026889948,10.37410342,4349.9,4349.8,1e-08]
[1757026890122,11.58120342,4349.9,4349.8,1e-08]
[1757026894037,11.94181439,4349.9,4349.8,1e-08]
[1757026894240,12.05656827,4349.9,4349.8,1e-08]
[1757026894867,11.6959573,4349.9,4349.8,1e-08]
[1757026895266,11.6959573,4349.9,4348.6,1e-08]
[1757026895267,3.0,4348.9,4348.6,1e-08]
[1757026895568,6.09153779,4348.7,4348.6,1e-08]
[1757026895870,10.36073779,4348.7,4348.6,1e-08]
[1757026899134,10.64703779,4348.7,4348.6,1e-08]
[1757026900055,10.36073779,4348.7,4348.6,1e-08]
[1757026900943,10.64703779,4348.7,4348.6,1e-08]
[1757026901263,10.36073779,4348.7,4348.6,1e-08]
[1757026904166,6.20673779,4348.7,4348.6,0.30430001]
[1757026904354,10.34373779,4348.7,4348.6,0.30430001]
[1757026904555,5.41473779,4348.7,4348.6,0.30430001]
[1757026904878,2.41473779,4348.7,4348.6,1.26120001]
[1757026905047,3.1152,4348.7,4348.6,1.26120001]
[1757026905247,5.41473779,4348.7,4348.6,1.26120001]
[1757026905998,6.20673779,4348.7,4348.6,0.30430001]
[1757026906155,6.20673779,4348.7,4348.6,1e-08]
[1757026906474,6.20673779,4348.7,4348.6,0.76670001]
[1757026906779,6.20673779,4348.7,4348.6,0.30430001]
[1757026907366,6.20673779,4348.7,4348.6,1e-08]
[1757026908291,6.20673779,4348.7,4348.6,0.30430001]
[1757026908682,10.33173779,4348.7,4348.6,0.30430001]
[1757026908887,10.33173779,4348.7,4348.6,1e-08]
[1757026908888,10.61803779,4348.7,4348.6,1e-08]
[1757026909397,11.50733779,4348.7,4348.6,1e-08]
[1757026909896,13.20233779,4348.7,4348.6,1e-08]
[1757026910261,0.792,4348.4,4348.2,1e-08]
[1757026910503,6.0919609,4347.9,4347.2,0.4945]
[1757026910665,10.4992609,4347.9,4347.2,0.4945]
[1757026910862,10.6144609,4347.9,4347.2,0.4945]
[1757026911263,6.2071609,4347.9,4347.8,1.2862]
[1757026911463,10.3261609,4347.9,4347.8,0.025]
[1757026912863,10.3261609,4347.9,4347.8,0.3293]
[1757026913997,10.3261609,4347.9,4347.8,0.025]
[1757026914221,10.3261609,4347.9,4347.8,0.3293]
[1757026914500,10.3221609,4347.9,4347.8,1.2862]
[1757026914895,10.6084609,4347.9,4347.8,0.025]
[1757026915099,10.3221609,4347.9,4347.8,0.025]
[1757026915974,10.6084609,4347.9,4347.8,0.025]
[1757026916985,7.3221609,4347.9,4347.8,0.3293]
[1757026917593,7.6084609,4347.9,4347.8,0.025]
[1757026919193,7.3221609,4347.9,4347.8,0.025]
[1757026919378,10.3221609,4347.9,4347.8,0.025]
[1757026919579,10.6084609,4347.9,4347.8,0.025]
[1757026920209,10.3071609,4347.9,4347.8,1.2862]
[1757026920507,10.3071609,4347.9,4347.8,0.025]
[1757026920880,10.5934609,4347.9,4347.8,0.025]
[1757026921187,10.5934609,4347.9,4346.8,0.025]
[1757026921188,6.0920138,4347.8,4347.7,1e-08]
[1757026921511,6.5242138,4347.8,4347.7,1e-08]
[1757026921693,6.3783138,4347.8,4347.7,1e-08]
[1757026922343,2.4152138,4347.8,4347.7,1.26120001]
[1757026923035,2.4152138,4347.8,4347.7,0.79880001]
[1757026923204,2.4152138,4347.8,4347.7,1.26120001]
[1757026924410,0.1152,4347.8,4347.7,1.26120001]
[1757026924905,3.2072138,4347.8,4347.7,1.26120001]
[1757026925410,2.4152138,4347.8,4347.7,1.26120001]
[1757026925917,2.29965361,4348.5,4347.7,1.38732001]
[1757026925918,2.29964464,4348.5,4347.7,1.38732001]
[1757026926131,2.29969788,4348.4,4347.8,0.9569]
[1757026926328,1.695,4349.4,4348.3,0.3043]
[1757026926329,2.29948617,4348.8,4348.3,0.3043]
[1757026926543,0.001,4348.7,4348.4,0.9569]
[1757026926744,0.001,4348.7,4348.6,0.3043]
[1757026927240,0.001,4348.7,4348.6,1.2612]
[1757026929746,2.30053779,4348.7,4348.6,1.2612]
[1757026929952,0.001,4348.7,4348.6,1.2612]
[1757026930553,2.30053779,4348.7,4348.6,1.2612]
[1757026931214,0.001,4348.7,4348.6,1.2612]
[1757026932320,2.30053779,4348.7,4348.6,1.2612]